fUSD/lending_fUSD_20240222
["ID","MTS","AMOUNT","RATE_DAILY","PERIOD"]
[314872834,1708605042850,-500.0,0.00032876,2]
[314872835,1708605042860,-500.0,0.00032876,2]
[314872836,1708605042869,-500.0,0.00032876,2]
[314872837,1708605042879,-509.85,0.00032876,2]
[314872838,1708605042889,-228.27317547,0.00032876,2]
[314872839,1708605042899,-500.0,0.00032876,2]
[314872840,1708605042908,-961.76,0.00032876,2]
[314872841,1708605042917,-500.99,0.00032876,2]
[314872842,1708605042927,-3953.53,0.00032876,2]
[314872843,1708605042937,-500.0,0.00032876,2]
[314872844,1708605042947,-3774.61,0.00032876,2]
[314872845,1708605042956,-2108.45,0.00032876,2]
[314872846,1708605042965,-1172.54,0.00032876,2]
[314872847,1708605042974,-1110.03,0.00032876,2]
[314872848,1708605042983,-542.13,0.00032876,2]
[314872849,1708605042992,-500.0,0.00032876,2]
[314872850,1708605043002,-721.25,0.00032876,2]
[314872851,1708605043011,-500.0,0.00032876,2]
[314872852,1708605043022,-2241.65,0.00032876,2]
[314872853,1708605043032,-500.0,0.00032876,2]
[314872854,1708605043041,-37214.87,0.00032876,2]
[314872855,1708605043050,-500.0,0.00032876,2]
[314872856,1708605043060,-1002.58,0.00032876,2]
[314872857,1708605043068,-500.0,0.00032876,2]
[314872858,1708605043077,-2325.63,0.00032876,2]
[314872859,1708605043087,-4257.1,0.00032876,2]
[314872860,1708605043096,-829.37,0.00032876,2]
[314872861,1708605043105,-11520.73,0.00032876,2]
[314872862,1708605043114,-500.0,0.00032876,2]
[314872863,1708605043123,-612.91,0.00032876,2]
[314872864,1708605043132,-576.34,0.00032876,2]
[314872865,1708605043142,-1556.29,0.00032876,2]
[314872866,1708605043151,-613.62605796,0.00032876,2]
[314872867,1708605043160,-3002.82,0.00032876,2]
[314872868,1708605043174,-2330.01,0.00032876,2]
[314872869,1708605043183,-672.14,0.00032876,2]
[314872870,1708605043193,-513.24,0.00032876,2]
[314872871,1708605043203,-726.72,0.00032876,2]
[314872872,1708605043213,-500.0,0.00032876,2]
[314872873,1708605043223,-500.0,0.00032876,2]
[314872874,1708605043233,-831.08,0.00032876,2]
[314872875,1708605043243,-500.0,0.00032876,2]
[314872876,1708605043254,-500.0,0.00032876,2]
[314872877,1708605043263,-900.33,0.00032876,2]
[314872878,1708605043274,-500.0,0.00032876,2]
[314872879,1708605043283,-904.07,0.00032876,2]
[314872880,1708605043295,-13085.58,0.00032876,2]
[314872881,1708605043305,-500.0,0.00032876,2]
[314872882,1708605043315,-500.0,0.00032876,2]
[314872883,1708605043325,-500.0,0.00032876,2]
[314872884,1708605043335,-639.74,0.00032876,2]
[314872885,1708605043346,-692.93,0.00032876,2]
[314872886,1708605043358,-1560.71,0.00032876,2]
[314872887,1708605043369,-500.0,0.00032876,2]
[314872888,1708605043378,-500.0,0.00032876,2]
[314872889,1708605043388,-8110.16,0.00032876,2]
[314872890,1708605043399,-500.0,0.00032876,2]
[314872891,1708605043409,-500.0,0.00032876,2]
[314872892,1708605043420,-943.68,0.00032876,2]
[314872893,1708605043430,-959.58,0.00032876,2]
[314872894,1708605043440,-544.64052146,0.00032876,2]
[314872895,1708605043450,-500.0,0.00032876,2]
[314872896,1708605043459,-500.0,0.00032876,2]
[314872897,1708605043469,-500.0,0.00032876,2]
[314872898,1708605043478,-1108.93,0.00032876,2]
[314872899,1708605043488,-1228.15,0.00032876,2]
[314872900,1708605043498,-2804.44,0.00032876,2]
[314872901,1708605043507,-6890.18,0.00032876,2]
[314872902,1708605043517,-996.16,0.00032876,2]
[314872903,1708605043527,-500.0,0.00032876,2]
[314872904,1708605043537,-7770.02,0.00032876,2]
[314872905,1708605043546,-500.0,0.00032876,2]
[314872906,1708605043556,-715.76,0.00032876,2]
[314872907,1708605043565,-5957.17,0.00032876,2]
[314872908,1708605043575,-500.0,0.00032876,2]
[314872909,1708605043585,-500.0,0.00032876,2]
[314872910,1708605043599,-1454.44,0.00032876,2]
[314872911,1708605043609,-1413.34,0.00032876,2]
[314872912,1708605043619,-500.0,0.00032876,2]
[314872913,1708605043629,-2680.78,0.00032876,2]
[314872914,1708605043641,-802.17,0.00032876,2]
[314872915,1708605043652,-674.66,0.00032876,2]
[314872916,1708605043662,-8515.98,0.00032876,2]
[314872917,1708605043672,-547.27,0.00032876,2]
[314872918,1708605043682,-2093.0,0.00032876,2]
[314872919,1708605043693,-758.92,0.00032876,2]
[314872920,1708605043703,-500.0,0.00032876,2]
[314872921,1708605043713,-500.0,0.00032876,2]
[314872922,1708605043726,-500.0,0.00032876,2]
[314872923,1708605043738,-589.46,0.00032876,2]
[314872924,1708605043748,-913.74,0.00032876,2]
[314872925,1708605043758,-500.0,0.00032876,2]
[314872926,1708605043768,-500.0,0.00032876,2]
[314872927,1708605043778,-3446.52,0.00032876,2]
[314872928,1708605043790,-548.21,0.00032876,2]
[314872929,1708605043800,-3716.15,0.00032876,2]
[314872931,1708605043810,-500.0,0.00032876,2]
[314872932,1708605043820,-500.0,0.00032876,2]
[314872933,1708605043830,-1774.96,0.00032876,2]
[314872934,1708605043839,-1289.6,0.00032876,2]
[314872935,1708605043849,-500.0,0.00032876,2]
[314872936,1708605043859,-559.69,0.00032876,2]
[314872937,1708605043870,-1177.27,0.00032876,2]
[314872938,1708605043880,-3513.37,0.00032876,2]
[314872939,1708605043889,-799.57,0.00032876,2]
[314872940,1708605043899,-500.0,0.00032876,2]
[314872941,1708605043909,-1631.26,0.00032876,2]
[314872942,1708605043918,-500.0,0.00032876,2]
[314872943,1708605043927,-500.0,0.00032876,2]
[314872944,1708605043937,-1271.81,0.00032876,2]
[314872945,1708605043946,-500.0,0.00032876,2]
[314872946,1708605043955,-16009.77,0.00032876,2]
[314872947,1708605043965,-438.5061561,0.00032876,2]
[314872948,1708605043974,-2043.21,0.00032876,2]
[314872949,1708605043984,-500.0,0.00032876,2]
[314872950,1708605043994,-1275.56,0.00032876,2]
[314872951,1708605044003,-1687.82,0.00032876,2]
[314872952,1708605044013,-500.0,0.00032876,2]
[314872953,1708605044023,-500.0,0.00032876,2]
[314872954,1708605044039,-861.28,0.00032876,2]
[314872955,1708605044050,-1798.41,0.00032876,2]
[314872956,1708605044062,-866.78,0.00032876,2]
[314872957,1708605044071,-687.84,0.00032876,2]
[314872958,1708605044081,-702.3,0.00032876,2]
[314872959,1708605044090,-686.04,0.00032876,2]
[314872960,1708605044100,-1310.46,0.00032876,2]
[314872961,1708605044112,-1146.27,0.00032876,2]
[314872962,1708605044122,-2092.9,0.00032876,2]
[314872963,1708605044132,-1592.92,0.00032876,2]
[314872964,1708605044141,-847.68,0.00032876,2]
[314872965,1708605044151,-500.0,0.00032876,2]
[314872966,1708605044162,-873.77,0.00032876,2]
[314872967,1708605044171,-601.97,0.00032876,2]
[314872968,1708605044182,-834.33,0.00032876,2]
[314872969,1708605044191,-689.26,0.00032876,2]
[314872970,1708605044203,-500.0,0.00032876,2]
[314872971,1708605044213,-3896.0,0.00032876,2]
[314872972,1708605044222,-1337.74,0.00032876,2]
[314872973,1708605044231,-500.0,0.00032876,2]
[314872974,1708605044241,-619.82,0.00032876,2]
[314872975,1708605044252,-2617.07,0.00032876,2]
[314872976,1708605044262,-1185.31,0.00032876,2]
[314872977,1708605044274,-2178.92,0.00032876,2]
[314872978,1708605044285,-1187.74,0.00032876,2]
[314872979,1708605044295,-500.0,0.00032876,2]
[314872980,1708605044305,-633.55,0.00032876,2]
[314872981,1708605044315,-2190.87,0.00032876,2]
[314872982,1708605044324,-2111.44,0.00032876,2]
[314872983,1708605044334,-602.64,0.00032876,2]
[314872984,1708605044343,-898.03,0.00032876,2]
[314872985,1708605044354,-584.08,0.00032876,2]
[314872986,1708605044363,-4335.03,0.00032876,2]
[314872987,1708605044373,-1315.85,0.00032876,2]
[314872988,1708605044384,-1713.79,0.00032876,2]
[314872989,1708605044394,-885.21,0.00032876,2]
[314872990,1708605044406,-10920.58,0.00032876,2]
[314872991,1708605044417,-777.44,0.00032876,2]
[314872992,1708605044798,-500.0,0.00032876,2]
[314872993,1708605044820,-756.3,0.00032876,2]
[314872994,1708605044830,-1493.9,0.00032876,2]
[314872995,1708605044840,-1274.89,0.00032876,2]
[314872996,1708605044849,-500.0,0.00032876,2]
[314872997,1708605044859,-500.0,0.00032876,2]
[314872998,1708605044869,-6672.64,0.00032876,2]
[314872999,1708605044878,-500.0,0.00032876,2]
[314873000,1708605044900,-2178.74,0.00032876,2]
[314873001,1708605044910,-500.0,0.00032876,2]
[314873002,1708605044921,-2569.07,0.00032876,2]
[314873003,1708605044931,-343.59807442,0.00032876,2]
[314873004,1708605044941,-550.27,0.00032876,2]
[314873005,1708605044952,-1428.56,0.00032876,2]
[314873006,1708605044962,-500.0,0.00032876,2]
[314873007,1708605044972,-558.19,0.00032876,2]
[314873008,1708605044982,-189.59342,0.00032876,2]
[314873009,1708605044993,-6844.32,0.00032876,2]
[314873010,1708605045003,-573.44,0.00032876,2]
[314873011,1708605045013,-1091.56,0.00032876,2]
[314873012,1708605045025,-5762.85,0.00032876,2]
[314873013,1708605045035,-3005.02,0.00032876,2]
[314873014,1708605045045,-500.0,0.00032876,2]
[314873015,1708605045055,-500.0,0.00032876,2]
[314873016,1708605045065,-1544.49,0.00032876,2]
[314873017,1708605045075,-500.0,0.00032876,2]
[314873018,1708605045085,-755.13,0.00032876,2]
[314873019,1708605045095,-2918.3,0.00032876,2]
[314873020,1708605045106,-500.0,0.00032876,2]
[314873021,1708605045116,-500.0,0.00032876,2]
[314873022,1708605045126,-845.02,0.00032876,2]
[314873023,1708605045136,-500.0,0.00032876,2]
[314873024,1708605045146,-1276.67,0.00032876,2]
[314873025,1708605045156,-1508.96,0.00032876,2]
[314873026,1708605045165,-3127.03,0.00032876,2]
[314873027,1708605045175,-500.0,0.00032876,2]
[314873028,1708605045184,-676.78,0.00032876,2]
[314873029,1708605045194,-686.67,0.00032876,2]
[314873030,1708605045204,-986.43,0.00032876,2]
[314873031,1708605045214,-579.7727177,0.00032876,2]
[314873032,1708605045223,-7316.14,0.00032876,2]
[314873033,1708605045233,-1518.65,0.00032876,2]
[314873034,1708605045243,-3350.24,0.00032876,2]
[314873035,1708605045252,-500.0,0.00032876,2]
[314873036,1708605045262,-500.0,0.00032876,2]
[314873037,1708605045272,-500.0,0.00032876,2]
[314873038,1708605045282,-1195.61,0.00032876,2]
[314873039,1708605045292,-4294.7,0.00032876,2]
[314873040,1708605045301,-733.56,0.00032876,2]
[314873041,1708605045311,-500.0,0.00032876,2]
[314873042,1708605045320,-500.0,0.00032876,2]
[314873043,1708605045330,-3597.34,0.00032876,2]
[314873044,1708605045340,-1126.48,0.00032876,2]
[314873045,1708605045349,-500.0,0.00032876,2]
[314873046,1708605045358,-500.0,0.00032876,2]
[314873047,1708605045368,-1261.6,0.00032876,2]
[314873048,1708605045377,-500.0,0.00032876,2]
[314873049,1708605045388,-930.39,0.00032876,2]
[314873050,1708605045397,-833.97,0.00032876,2]
[314873051,1708605045407,-728.46,0.00032876,2]
[314873053,1708605045417,-1065.6,0.00032876,2]
[314873055,1708605045427,-5269.02,0.00032876,2]
[314873057,1708605045437,-1216.42,0.00032876,2]
[314873058,1708605045447,-666.81,0.00032876,2]
[314873059,1708605045457,-725.69,0.00032876,2]
[314873060,1708605045468,-500.0,0.00032876,2]
[314873062,1708605045477,-649.26,0.00032876,2]
[314873063,1708605045487,-1897.03,0.00032876,2]
[314873064,1708605045497,-1114.56,0.00032876,2]
[314873065,1708605045507,-500.0,0.00032876,2]
[314873066,1708605045516,-769.83,0.00032876,2]
[314873067,1708605045526,-500.0,0.00032876,2]
[314873068,1708605045535,-511.47,0.00032876,2]
[314873069,1708605045544,-1604.53,0.00032876,2]
[314873070,1708605045554,-511.47,0.00032876,2]
[314873071,1708605045568,-511.47,0.00032876,2]
[314873072,1708605045577,-511.47,0.00032876,2]
[314873073,1708605045587,-511.47,0.00032876,2]
[314873074,1708605045598,-16240.41,0.00032876,2]
[314873075,1708605045608,-853.73,0.00032876,2]
[314873076,1708605045618,-636.12,0.00032876,2]
[314873077,1708605045628,-1059.18,0.00032876,2]
[314873078,1708605045639,-500.0,0.00032876,2]
[314873079,1708605045651,-10010.34,0.00032876,2]
[314873080,1708605045660,-416.11998544,0.00032876,2]
[314873081,1708605045671,-500.0,0.00032876,2]
[314873082,1708605045680,-2230.62,0.00032876,2]
[314873083,1708605045691,-2353.34,0.00032876,2]
[314873084,1708605045701,-1238.83,0.00032876,2]
[314873085,1708605045711,-500.0,0.00032876,2]
[314873086,1708605045723,-570.23,0.00032876,2]
[314873087,1708605045734,-500.0,0.00032876,2]
[314873088,1708605045744,-615.75349914,0.00032876,2]
[314873089,1708605045754,-1165.66,0.00032876,2]
[314873090,1708605045764,-1323.27,0.00032876,2]
[314873091,1708605045775,-500.0,0.00032876,2]
[314873092,1708605045786,-500.0,0.00032876,2]
[314873093,1708605045796,-500.0,0.00032876,2]
[314873094,1708605045809,-1311.92,0.00032876,2]
[314873095,1708605045820,-500.0,0.00032876,2]
[314873096,1708605045830,-800.38,0.00032876,2]
[314873097,1708605045841,-1446.03,0.00032876,2]
[314873098,1708605045851,-5292.13,0.00032876,2]
[314873099,1708605045863,-500.0,0.00032876,2]
[314873100,1708605045875,-500.0,0.00032876,2]
[314873101,1708605045885,-2332.82,0.00032876,2]
[314873102,1708605045894,-1151.29,0.00032876,2]
[314873103,1708605045904,-500.0,0.00032876,2]
[314873104,1708605045914,-500.0,0.00032876,2]
[314873105,1708605045923,-1231.8,0.00032876,2]
[314873106,1708605045933,-500.0,0.00032876,2]
[314873107,1708605045942,-1200.32,0.00032876,2]
[314873108,1708605045952,-1105.8,0.00032876,2]
[314873109,1708605045962,-500.0,0.00032876,2]
[314873110,1708605045972,-500.0,0.00032876,2]
[314873111,1708605045981,-6650.75,0.00032876,2]
[314873112,1708605045991,-500.0,0.00032876,2]
[314873113,1708605046000,-3183.06,0.00032876,2]
[314873114,1708605046011,-500.0,0.00032876,2]
[314873115,1708605046021,-564.28,0.00032876,2]
[314873116,1708605046031,-500.0,0.00032876,2]
[314873118,1708605046041,-1402.79,0.00032876,2]
[314873119,1708605046050,-500.0,0.00032876,2]
[314873120,1708605046060,-873.56,0.00032876,2]
[314873121,1708605046069,-166.15,0.00032877,2]
[314873122,1708605046079,-250.0,0.00032877,2]
[314873123,1708605046088,-412.88,0.00032877,2]
[314873124,1708605046102,-412.88,0.00032877,2]
[314873125,1708605046112,-410.3,0.00032877,2]
[314873126,1708605046122,-799.35161568,0.0003296,2]
[314873127,1708605046132,-170.75,0.00032991,2]
[314873128,1708605046141,-175.0,0.00033,2]
[314873129,1708605046151,-352.0,0.00033,2]
[314873130,1708605046161,-13114.23920204,0.00033035,2]
[314873131,1708605046171,-944.91096786,0.0003305,5]
[314873132,1708605046181,-156.31314036,0.0003305,2]
[314873133,1708605046191,-233.45391699,0.0003305,2]
[314873134,1708605046200,-1288.95285609,0.0003305,2]
[314873135,1708605046210,-11466.71026666,0.0003305,2]
[314873136,1708605046220,-346.85441548,0.0003305,2]
[314873137,1708605046230,-153.45,0.0003306,2]
[314873138,1708605046239,-3000.0,0.0003309,2]
[314873139,1708605046249,-385.19,0.00033103,10]
[314873140,1708605046259,-511.47,0.00033149,4]
[314873141,1708605046269,-511.47,0.00033149,4]
[314873142,1708605046278,-865.92,0.0003315,4]
[314873143,1708605046289,-500.0,0.0003315,4]
[314873144,1708605046299,-500.0,0.0003315,4]
[314873145,1708605046308,-500.0,0.0003315,4]
[314873146,1708605046318,-877.74,0.0003315,4]
[314873147,1708605046328,-500.0,0.0003315,4]
[314873148,1708605046337,-500.0,0.0003315,4]
[314873149,1708605046347,-500.0,0.0003315,4]
[314873150,1708605046357,-500.0,0.0003315,4]
[314873151,1708605046369,-500.0,0.0003315,4]
[314873152,1708605046378,-500.0,0.0003315,4]
[314873153,1708605046390,-500.0,0.0003315,4]
[314873154,1708605046401,-500.0,0.0003315,4]
[314873155,1708605046412,-500.0,0.0003315,4]
[314873156,1708605046421,-500.0,0.0003315,4]
[314873157,1708605046431,-500.0,0.0003315,4]
[314873158,1708605046441,-500.0,0.0003315,4]
[314873159,1708605046451,-500.0,0.0003315,4]
[314873160,1708605046461,-500.68298,0.0003315,4]
[314873161,1708605046471,-500.0,0.0003315,4]
[314873162,1708605046481,-500.0,0.0003315,4]
[314873163,1708605046492,-561.14,0.0003315,4]
[314873164,1708605046502,-500.0,0.0003315,4]
[314873165,1708605046511,-500.0,0.0003315,4]
[314873166,1708605046522,-500.0,0.0003315,4]
[314873167,1708605046532,-500.0,0.0003315,4]
[314873168,1708605046542,-500.0,0.0003315,4]
[314873169,1708605046552,-500.0,0.0003315,4]
[314873170,1708605046561,-500.0,0.0003315,4]
[314873171,1708605046571,-500.0,0.0003315,4]
[314873172,1708605046581,-500.0,0.0003315,4]
[314873173,1708605046590,-500.0,0.0003315,4]
[314873174,1708605046600,-571.91169666,0.0003315,4]
[314873175,1708605046610,-500.0,0.0003315,4]
[314873176,1708605046622,-500.0,0.0003315,4]
[314873177,1708605046632,-502.17,0.0003315,4]
[314873178,1708605046645,-500.0,0.0003315,4]
[314873179,1708605046655,-519.75,0.0003315,4]
[314873180,1708605046665,-500.0,0.0003315,4]
[314873181,1708605046675,-500.0,0.0003315,4]
[314873182,1708605046686,-500.0,0.0003315,4]
[314873183,1708605046696,-500.0,0.0003315,4]
[314873184,1708605046706,-500.0,0.0003315,4]
[314873185,1708605046715,-500.0,0.0003315,4]
[314873186,1708605046726,-500.0,0.0003315,4]
[314873187,1708605046737,-500.0,0.0003315,4]
[314873188,1708605046747,-500.0,0.0003315,4]
[314873189,1708605046757,-500.0,0.0003315,4]
[314873190,1708605046767,-505.66,0.0003315,4]
[314873191,1708605046777,-500.0,0.0003315,4]
[314873192,1708605046787,-500.0,0.0003315,4]
[314873193,1708605046796,-500.0,0.0003315,4]
[314873194,1708605046806,-487.85656949,0.0003315,4]
[314873195,1708605046816,-500.0,0.0003315,4]
[314873196,1708605046826,-500.0,0.0003315,4]
[314873197,1708605046835,-500.0,0.0003315,4]
[314873198,1708605046846,-500.0,0.0003315,4]
[314873199,1708605046856,-500.0,0.0003315,4]
[314873200,1708605046867,-500.0,0.0003315,4]
[314873201,1708605046877,-500.0,0.0003315,4]
[314873202,1708605046886,-500.0,0.0003315,4]
[314873203,1708605046896,-500.0,0.0003315,4]
[314873204,1708605046906,-500.0,0.0003315,4]
[314873205,1708605046916,-500.0,0.0003315,4]
[314873206,1708605046931,-500.0,0.0003315,4]
[314873207,1708605046941,-500.0,0.0003315,4]
[314873208,1708605046951,-500.0,0.0003315,4]
[314873209,1708605046961,-1249.16,0.0003315,4]
[314873210,1708605046970,-500.0,0.0003315,4]
[314873211,1708605046980,-500.0,0.0003315,4]
[314873212,1708605046989,-500.0,0.0003315,4]
[314873213,1708605046999,-500.0,0.0003315,4]
[314873214,1708605047009,-500.0,0.0003315,4]
[314873215,1708605047018,-500.0,0.0003315,4]
[314873216,1708605047028,-500.0,0.0003315,4]
[314873217,1708605047037,-500.0,0.0003315,4]
[314873218,1708605047047,-500.0,0.0003315,4]
[314873219,1708605047056,-500.0,0.0003315,4]
[314873220,1708605047066,-500.0,0.0003315,4]
[314873221,1708605047075,-598.96344402,0.0003315,4]
[314873222,1708605047084,-500.0,0.0003315,4]
[314873223,1708605047094,-500.0,0.0003315,4]
[314873224,1708605047103,-500.0,0.0003315,4]
[314873225,1708605047112,-500.0,0.0003315,4]
[314873226,1708605047121,-500.0,0.0003315,4]
[314873227,1708605047131,-500.0,0.0003315,4]
[314873228,1708605047140,-500.0,0.0003315,4]
[314873229,1708605047150,-500.0,0.0003315,4]
[314873230,1708605047159,-500.0,0.0003315,4]
[314873231,1708605047169,-500.0,0.0003315,4]
[314873232,1708605047178,-556.52891367,0.0003315,4]
[314873233,1708605047188,-500.0,0.0003315,4]
[314873234,1708605047197,-545.15829556,0.0003315,3]
[314873235,1708605047207,-500.0,0.0003315,4]
[314873236,1708605047217,-500.0,0.0003315,4]
[314873237,1708605047355,-500.0,0.0003315,4]
[314873238,1708605047365,-500.0,0.0003315,4]
[314873239,1708605047374,-500.0,0.0003315,4]
[314873240,1708605047383,-500.0,0.0003315,4]
[314873241,1708605047393,-500.0,0.0003315,4]
[314873242,1708605047402,-500.0,0.0003315,4]
[314873243,1708605047412,-500.0,0.0003315,4]
[314873244,1708605047421,-500.0,0.0003315,4]
[314873245,1708605047430,-500.0,0.0003315,4]
[314873246,1708605047439,-150.0,0.0003315,4]
[314873247,1708605047449,-500.0,0.0003315,4]
[314873248,1708605047459,-500.0,0.0003315,4]
[314873249,1708605047468,-500.0,0.0003315,4]
[314873250,1708605047477,-500.0,0.0003315,4]
[314873251,1708605047487,-500.0,0.0003315,4]
[314873252,1708605047496,-500.0,0.0003315,4]
[314873253,1708605047505,-500.0,0.0003315,4]
[314873254,1708605047514,-500.0,0.0003315,4]
[314873255,1708605047525,-500.0,0.0003315,4]
[314873256,1708605047534,-500.0,0.0003315,4]
[314873257,1708605047543,-500.0,0.0003315,4]
[314873258,1708605047552,-517.88754774,0.0003315,4]
[314873259,1708605047562,-500.0,0.0003315,4]
[314873260,1708605047571,-500.0,0.0003315,4]
[314873261,1708605047581,-500.0,0.0003315,4]
[314873262,1708605047591,-500.0,0.0003315,4]
[314873263,1708605047600,-500.0,0.0003315,4]
[314873264,1708605047610,-814.32,0.0003315,4]
[314873265,1708605047619,-500.0,0.0003315,4]
[314873266,1708605047629,-548.54673161,0.0003315,4]
[314873267,1708605047642,-500.0,0.0003315,4]
[314873268,1708605047651,-500.0,0.0003315,4]
[314873269,1708605047661,-500.0,0.0003315,4]
[314873270,1708605047670,-500.0,0.0003315,4]
[314873271,1708605047679,-943.02,0.0003315,4]
[314873272,1708605047688,-478.53630151,0.0003315,4]
[314873273,1708605047698,-500.0,0.0003315,4]
[314873274,1708605047707,-1401.66,0.0003315,4]
[314873275,1708605047718,-500.0,0.0003315,4]
[314873276,1708605047729,-500.0,0.0003315,4]
[314873277,1708605047738,-870.87,0.0003315,4]
[314873278,1708605047748,-500.0,0.0003315,4]
[314873279,1708605047758,-500.0,0.0003315,4]
[314873280,1708605047768,-500.0,0.0003315,4]
[314873281,1708605047778,-500.0,0.0003315,2]
[314873282,1708605047787,-500.0,0.0003315,4]
[314873283,1708605047797,-896.69,0.0003315,4]
[314873284,1708605047807,-850.8,0.0003315,4]
[314873285,1708605047817,-500.0,0.0003315,4]
[314873286,1708605047826,-500.0,0.0003315,4]
[314873287,1708605047835,-500.0,0.0003315,4]
[314873288,1708605047844,-500.0,0.0003315,4]
[314873289,1708605047853,-500.0,0.0003315,4]
[314873290,1708605047864,-500.0,0.0003315,4]
[314873291,1708605047874,-500.0,0.0003315,4]
[314873292,1708605047883,-500.0,0.0003315,4]
[314873293,1708605047894,-500.0,0.0003315,4]
[314873294,1708605047903,-500.0,0.0003315,4]
[314873295,1708605047913,-500.0,0.0003315,4]
[314873296,1708605047922,-669.5,0.0003315,4]
[314873297,1708605047932,-508.78,0.0003315,4]
[314873298,1708605047941,-500.0,0.0003315,4]
[314873299,1708605047950,-500.0,0.0003315,4]
[314873300,1708605047961,-500.0,0.0003315,4]
[314873301,1708605047970,-501.83,0.0003315,4]
[314873302,1708605047979,-500.0,0.0003315,4]
[314873303,1708605047988,-217.97731033,0.0003315,4]
[314873304,1708605047998,-513.36,0.0003315,4]
[314873305,1708605048007,-770.16,0.0003315,4]
[314873306,1708605048016,-703.37,0.0003315,4]
[314873307,1708605048025,-500.0,0.0003315,4]
[314873308,1708605048034,-500.0,0.0003315,4]
[314873309,1708605048042,-500.0,0.0003315,4]
[314873310,1708605048052,-500.0,0.0003315,4]
[314873311,1708605048061,-500.0,0.0003315,4]
[314873312,1708605048070,-500.0,0.0003315,4]
[314873313,1708605048081,-1026.24,0.0003315,4]
[314873314,1708605048091,-585.77,0.0003315,4]
[314873315,1708605048101,-500.0,0.0003315,4]
[314873316,1708605048110,-545.08,0.0003315,4]
[314873317,1708605048119,-500.0,0.0003315,4]
[314873318,1708605048128,-500.0,0.0003315,4]
[314873319,1708605048137,-500.0,0.0003315,4]
[314873320,1708605048146,-500.0,0.0003315,4]
[314873321,1708605048155,-1000.0,0.0003315,7]
[314873322,1708605048165,-500.0,0.0003315,4]
[314873323,1708605048174,-524.14,0.0003315,4]
[314873324,1708605048183,-500.0,0.0003315,4]
[314873325,1708605048192,-174.28074553,0.0003315,4]
[314873326,1708605048201,-631.87,0.0003315,4]
[314873327,1708605048210,-500.0,0.0003315,4]
[314873328,1708605048219,-500.0,0.0003315,4]
[314873329,1708605048228,-500.0,0.0003315,4]
[314873330,1708605048237,-500.0,0.0003315,4]
[314873331,1708605048246,-849.89,0.0003315,4]
[314873332,1708605048255,-500.0,0.0003315,4]
[314873333,1708605048263,-500.0,0.0003315,4]
[314873334,1708605048273,-500.0,0.0003315,4]
[314873335,1708605048282,-500.0,0.0003315,4]
[314873336,1708605048291,-500.0,0.0003315,4]
[314873337,1708605048300,-564.45,0.0003315,4]
[314873338,1708605048309,-746.43,0.0003315,4]
[314873339,1708605048318,-500.0,0.0003315,4]